bitfinex/quotes_ETHUSD_20250720
["timestamp","ask_amount","ask_price","bid_price","bid_amount"]
[1753029818034,0.4426,3808.8,3808.0,0.0262605]
[1753029818635,0.7814,3808.9,3808.7,2.62555967]
[1753029818836,0.7814,3808.9,3808.0,0.4626605]
[1753029819238,0.7814,3808.9,3807.8,0.7789]
[1753029819436,0.7814,3808.9,3808.6,2.62558574]
[1753029820239,5.4164,3809.4,3808.9,2.62538082]
[1753029820427,0.9126,3809.4,3808.8,0.1312]
[1753029820630,0.7814,3809.9,3808.5,0.19341018]
[1753029820936,0.7814,3809.9,3809.6,2.62494258]
[1753029821107,0.1312,3810.3,3810.0,2.62465381]
[1753029821300,0.1312,3810.3,3809.8,0.1312]
[1753029821502,0.7814,3810.4,3810.0,2.62460939]
[1753029821742,0.7814,3810.4,3809.8,0.1312]
[1753029821958,0.7814,3810.4,3809.2,3.06160125]
[1753029821959,0.7814,3810.4,3810.3,2.62446526]
[1753029822114,0.1344,3811.6,3810.5,3.0]
[1753029822452,0.004,3811.6,3811.2,0.1304]
[1753029822609,0.004,3811.6,3811.5,2.62363898]
[1753029823442,0.004,3811.6,3811.5,2.75403898]
[1753029823833,0.004,3811.6,3811.5,5.75403898]
[1753029824043,0.004,3811.6,3811.5,0.1304]
[1753029824408,0.004,3811.6,3811.2,0.1304]
[1753029824608,0.004,3811.6,3811.5,6.37553898]
[1753029824812,0.4426,3811.5,3808.7,0.4364]
[1753029825053,2.6244614,3810.4,3808.8,0.02625498]
[1753029825234,2.62433176,3810.5,3808.8,2.62549884]
[1753029825438,4.841,3810.4,3808.9,0.4364]
[1753029825748,0.7769,3810.3,3808.8,0.02625498]
[1753029826043,1.2195,3810.3,3808.7,0.7519]
[1753029826245,2.62483657,3809.8,3808.7,3.37741348]
[1753029826444,4.838,3810.0,3808.6,0.001]
[1753029826649,2.62510643,3809.4,3808.6,0.001]
[1753029826949,2.62514456,3809.4,3808.6,0.001]
[1753029827244,2.62522378,3809.2,3808.6,0.001]
[1753029827708,4.828,3809.4,3808.6,0.001]
[1753029828143,2.62492881,3809.7,3808.7,2.62549946]
[1753029828350,4.825,3809.6,3808.6,0.001]
[1753029828544,2.6250164,3809.5,3808.6,0.001]
[1753029828869,2.6250178,3809.5,3808.6,0.001]
[1753029829069,3.40141068,3810.3,3808.6,0.001]
[1753029829070,4.819,3809.8,3808.6,0.001]
[1753029829270,0.4426,3810.1,3808.6,2.62658688]
[1753029829474,4.818,3810.0,3808.8,2.62544433]
[1753029829674,2.62458554,3810.2,3809.2,2.62522133]
[1753029829969,0.7769,3810.3,3809.5,2.62495393]
[1753029830132,0.7769,3810.3,3809.8,2.6247476]
[1753029830329,4.816,3810.8,3809.8,0.4364]
[1753029830563,2.62418978,3810.7,3809.7,2.65110526]
[1753029830770,0.7769,3810.9,3809.7,0.02624878]
[1753029831069,2.62400682,3811.0,3810.2,2.62447156]
[1753029831272,2.62400682,3811.0,3809.7,0.46264878]
[1753029831437,0.4426,3811.3,3809.9,2.6247408]
[1753029831636,0.4426,3811.3,3810.8,2.62407497]
[1753029831842,2.62372471,3811.4,3810.7,2.62417158]
[1753029832054,4.807,3811.3,3810.8,2.62411057]
[1753029832252,4.807,3811.3,3810.7,2.62418824]
[1753029832456,2.62370967,3811.4,3810.7,2.62418824]
[1753029832638,4.807,3811.3,3810.7,2.62418824]
[1753029832967,2.62370967,3811.4,3810.7,2.62418824]
[1753029833169,7.0719,3811.5,3810.8,2.62412091]
[1753029833336,7.42471397,3811.4,3810.7,2.62417236]
[1753029833533,0.7769,3811.5,3811.1,2.62384676]
[1753029833753,0.7769,3811.5,3811.0,2.62396536]
[1753029833970,0.00200001,3811.8,3810.6,0.83214258]
[1753029834170,2.62350132,3811.7,3810.9,2.62402721]
[1753029834349,2.62546155,3811.8,3811.0,2.62391841]
[1753029834679,2.62357161,3811.6,3811.1,0.1304]
[1753029835099,0.1304,3811.7,3811.1,0.1304]
[1753029835466,2.75390362,3811.7,3811.1,0.1304]
[1753029835662,0.4426,3811.6,3810.6,2.62420248]
[1753029835975,0.1304,3811.2,3810.6,2.75540248]
[1753029836386,0.1304,3811.2,3810.6,0.1312]
[1753029836587,0.8028,3811.0,3809.5,1.2496]
[1753029836791,0.1312,3810.7,3810.1,0.1312]
[1753029836990,2.62437707,3810.5,3809.8,2.62475173]
[1753029837179,0.1312,3810.4,3809.8,0.1312]
[1753029837362,0.1312,3810.4,3810.0,2.6246329]
[1753029837562,4.774,3810.7,3809.4,0.4364]
[1753029837878,4.9052,3810.7,3810.1,0.1312]
[1753029838182,4.9052,3810.7,3810.1,2.75580177]
[1753029838384,4.9052,3810.7,3809.4,3.06144673]
[1753029838385,4.774,3810.7,3809.9,2.62472069]
[1753029838560,0.1312,3810.4,3809.8,0.1312]
[1753029838760,4.8982,3810.7,3810.1,0.1312]
[1753029839186,2.62453755,3810.2,3808.9,0.4408]
[1753029839393,2.75573755,3810.2,3809.5,0.1312]
[1753029839552,2.62465115,3810.1,3809.5,0.1312]
[1753029839759,2.62474273,3809.9,3809.5,0.1312]
[1753029839954,5.79954491,3810.7,3809.1,2.62527978]
[1753029839955,3.08013271,3809.8,3809.1,2.62527978]
[1753029840154,0.1312,3809.7,3809.1,2.75647978]
[1753029840354,0.1312,3809.7,3809.1,0.1312]
[1753029840589,2.6250003,3809.6,3809.1,0.1312]
[1753029840798,2.62503419,3809.5,3809.1,0.1312]
[1753029840956,0.1312,3809.7,3808.6,0.001]
[1753029840957,0.4553,3809.4,3808.6,0.001]
[1753029841158,7.83939388,3809.4,3808.6,0.001]
[1753029841352,5.2143,3809.4,3808.8,0.1312]
[1753029841587,0.1312,3809.0,3808.6,0.001]
[1753029841787,0.1312,3809.0,3808.7,2.62554714]
[1753029842091,4.756,3809.3,3808.7,0.1312]
[1753029842299,7.38116132,3809.3,3808.7,0.1312]
[1753029842492,4.756,3809.3,3808.6,2.62661804]
[1753029842807,4.755,3809.3,3808.6,0.001]
[1753029843015,4.755,3809.3,3808.7,2.65182344]
[1753029843161,2.62482471,3809.8,3808.8,0.8205]
[1753029843362,2.62476271,3809.9,3809.1,2.62524113]
[1753029843693,0.7605,3810.1,3808.8,0.8205]
[1753029843867,2.62439545,3810.5,3809.9,2.62473766]
[1753029843868,4.747,3810.2,3809.9,2.62473766]
[1753029844075,0.7605,3810.5,3809.9,2.62473766]
[1753029844267,0.4553,3810.8,3809.4,0.4408]
[1753029844596,0.4553,3810.8,3810.2,2.62449981]
[1753029844597,4.745,3810.7,3810.2,2.62449981]
[1753029844799,0.8107,3811.0,3809.4,0.46705085]
[1753029844997,4.742,3810.9,3810.4,2.62437497]
[1753029845299,0.8107,3811.0,3810.4,2.62437497]
[1753029845469,4.72,3810.9,3809.8,1.24284809]
[1753029845662,2.62417568,3810.8,3809.9,2.6247408]
[1753029845999,3.43489136,3810.7,3809.9,2.62468685]
[1753029846164,2.62427985,3810.6,3809.9,2.62468685]
[1753029846504,5.5487,3810.7,3810.1,2.62454426]
[1753029846712,5.5487,3810.7,3810.1,2.62453549]
[1753029846913,0.8107,3810.7,3810.5,2.62426305]
[1753029847059,4.736,3810.8,3810.4,2.62434778]
[1753029847264,0.8107,3811.2,3810.6,2.62420024]
[1753029847763,0.8107,3811.2,3810.6,2.62419816]
[1753029848204,0.8107,3811.2,3810.4,2.62435239]
[1753029848373,2.62391435,3811.1,3810.3,2.62441286]
[1753029848566,0.8107,3811.2,3809.9,0.4408]
[1753029849083,0.8107,3811.2,3810.6,2.62419068]
[1753029849406,5.5327,3811.2,3810.4,2.62436303]
[1753029849561,5.5327,3811.2,3809.9,0.4408]
[1753029849562,0.8107,3811.2,3810.7,2.62418505]
[1753029849766,0.8107,3811.2,3810.8,2.62412091]
[1753029850000,0.8107,3811.2,3810.9,2.62400577]
[1753029850295,0.8107,3811.2,3810.7,2.62414304]
[1753029850593,0.8107,3811.2,3809.7,3.0]
[1753029850594,4.714,3811.5,3810.3,0.4408]
[1753029850820,4.714,3811.5,3810.4,0.02624396]
[1753029850966,6.05157906,3811.4,3810.5,2.62432751]
[1753029851318,2.62450855,3810.3,3809.5,0.4408]
[1753029851593,2.62450855,3810.3,3807.8,4.01151717]
[1753029851594,2.62444586,3810.4,3809.6,2.62489215]
[1753029851769,0.7661,3810.5,3809.9,2.62472669]
[1753029851959,0.7661,3810.5,3809.5,0.4408]
[1753029852160,0.7661,3810.5,3809.6,0.02624947]
[1753029852364,0.1312,3810.7,3810.5,2.62428273]
[1753029852562,0.7661,3810.9,3810.3,0.1312]
[1753029852563,0.8973,3810.9,3810.3,0.1312]
[1753029852806,0.8973,3810.9,3810.4,2.62439638]
[1753029852964,0.8973,3810.9,3810.4,2.62437837]
[1753029853396,3.52135743,3810.9,3810.3,0.1312]
[1753029853603,0.8973,3810.9,3810.4,2.6243747]
[1753029854108,0.8973,3810.9,3810.5,2.62432107]
[1753029854259,0.8973,3810.9,3810.6,2.62425864]
[1753029854465,0.8973,3810.9,3810.3,2.75560567]
[1753029854759,0.8973,3810.9,3810.3,0.1312]
[1753029854963,0.8973,3810.9,3810.3,2.7556186]
[1753029855163,0.8973,3810.9,3810.3,2.75564573]
[1753029855605,0.8973,3810.9,3810.3,0.1312]
[1753029855967,1.29494611,3810.9,3810.3,0.1312]
[1753029856364,2.62423393,3810.7,3810.3,0.1312]
[1753029856596,0.1312,3810.7,3810.3,0.1312]
[1753029856778,0.1312,3810.7,3810.3,2.75565781]
[1753029857083,0.1312,3810.7,3810.3,0.1312]
[1753029857624,0.1312,3810.7,3810.6,2.62425864]
[1753029857805,0.8097,3811.5,3810.3,0.1312]
[1753029857806,2.62375953,3811.4,3810.3,0.1312]
[1753029858009,0.1304,3811.1,3810.8,2.62411967]
[1753029858166,0.8097,3811.5,3810.2,0.4408]
[1753029858365,0.1304,3811.4,3811.0,2.62397984]
[1753029858802,0.1304,3811.4,3810.8,2.75526502]
[1753029859011,0.1304,3811.4,3811.0,2.62393381]
[1753029859213,0.1304,3811.4,3811.3,2.62377666]
[1753029859532,0.13240001,3811.8,3811.3,2.62376652]
[1753029859674,0.13240001,3811.8,3811.3,2.62377666]
[1753029859999,0.00200001,3811.8,3811.7,2.62350132]
[1753029860314,0.00200001,3811.8,3811.5,0.1304]
[1753029860474,0.00200001,3811.8,3811.7,2.62350132]
[1753029861299,0.00200001,3811.8,3811.7,2.75390132]
[1753029861877,0.00200001,3811.8,3811.7,3.19470132]
[1753029862783,0.00200001,3811.8,3811.7,3.22093633]
[1753029863077,0.00200001,3811.8,3811.7,6.98000132]
[1753029863538,0.00200001,3811.8,3811.7,2.75390132]
[1753029863680,0.00200001,3811.8,3811.7,0.1304]
[1753029864014,0.00200001,3811.8,3811.7,2.75390132]
[1753029864218,0.00200001,3811.8,3811.7,3.19470132]
[1753029864539,0.00200001,3811.8,3811.7,3.96850132]
[1753029864679,0.00200001,3811.8,3811.7,3.52770132]
[1753029865017,0.00200001,3811.8,3811.7,2.75390132]
[1753029866126,0.00200001,3811.8,3811.1,0.7738]
[1753029866437,0.45730001,3811.8,3811.5,2.6235993]
[1753029866606,0.00200001,3811.8,3811.4,0.1304]
[1753029866933,0.00200001,3811.8,3811.7,2.62350132]
[1753029867239,0.8283,3811.3,3810.2,0.1312]
[1753029867444,2.62431832,3810.6,3809.3,1.2146]
[1753029867667,0.1312,3810.4,3809.8,0.1312]
[1753029868344,0.1312,3810.4,3809.8,2.75599069]
[1753029868513,5.4703,3810.5,3809.9,2.62468839]
[1753029868840,5.4703,3810.5,3810.1,2.75580186]
[1753029869008,4.7722,3810.7,3810.3,2.62441619]
[1753029869215,4.7722,3810.7,3810.1,0.1312]
[1753029869808,4.7722,3810.7,3810.2,2.62447034]
[1753029870331,5.2141,3810.7,3810.1,2.75579174]
[1753029870509,0.1312,3810.7,3810.4,2.62437471]
[1753029870702,4.632,3810.8,3810.6,2.62420709]
[1753029871243,0.7834,3811.5,3810.3,0.4607]
[1753029871554,0.7834,3811.5,3811.0,2.62396688]
[1753029871702,5.4144,3811.5,3811.2,2.62381038]
[1753029871900,5.4144,3811.5,3811.1,2.75429941]
[1753029872124,5.4144,3811.5,3810.3,3.0]
[1753029872313,0.4419,3811.4,3810.9,0.1312]
[1753029872515,0.4419,3811.4,3811.0,2.62393601]
[1753029872733,5.5448,3811.5,3811.3,2.62373228]
[1753029873037,0.9138,3811.5,3810.9,0.1312]
[1753029873244,0.7834,3811.5,3811.3,2.62371074]
[1753029873401,0.7834,3811.5,3811.2,0.1304]
[1753029873402,0.7834,3811.5,3810.7,3.0]
[1753029873613,0.7834,3811.5,3811.2,2.62378663]
[1753029873958,0.00200001,3811.8,3811.7,5.62350132]
[1753029874316,0.00200001,3811.8,3811.7,5.75390132]
[1753029875646,0.00666878,3812.7,3812.4,6.43611962]
[1753029875807,0.00666878,3812.7,3812.4,11.06611962]
[1753029876007,1e-08,3813.0,3812.6,3.0]
[1753029876201,0.06433333,3813.7,3813.6,2.62219425]
[1753029876506,0.06433333,3813.7,3813.6,10.27641619]
[1753029876855,0.06433333,3813.7,3813.6,6.89599425]
[1753029877007,0.06433333,3813.7,3813.6,11.52399425]
[1753029877549,0.06433333,3813.7,3813.6,6.89599425]
[1753029877764,0.06433333,3813.7,3813.6,11.52099425]
[1753029877984,0.06433333,3813.7,3813.6,6.89599425]
[1753029878275,0.06433333,3813.7,3813.6,11.51899425]
[1753029878478,0.06433333,3813.7,3813.6,4.2738]
[1753029878642,0.06433333,3813.7,3813.1,1.2738]
[1753029878843,0.06433333,3813.7,3813.2,4.65422469]
[1753029879042,0.06433333,3813.7,3813.4,2.62227381]
[1753029879240,0.06433333,3813.7,3813.5,2.62219842]
[1753029879445,0.7834,3813.6,3811.9,0.8131]
[1753029879667,1.2253,3813.6,3813.0,2.62255506]
[1753029880165,2.62228363,3813.5,3811.9,0.8131]
[1753029880356,0.8330917,3813.4,3812.2,4.627]
[1753029880555,0.8261,3812.7,3811.6,2.62352283]
[1753029880865,3.89082898,3812.7,3811.8,2.62336415]
[1753029881065,3.89082898,3812.7,3811.3,0.02623776]
[1753029881066,5.0689,3812.6,3810.8,2.62412091]
[1753029881229,0.4419,3812.5,3810.7,0.4607]
[1753029881430,0.4419,3812.5,3811.0,3.0]
[1753029881660,0.4419,3812.5,3811.1,0.48693914]
[1753029881828,0.38909114,3812.4,3811.1,0.48693914]
[1753029882035,0.38909114,3812.4,3811.7,2.62346011]
[1753029882254,0.38909114,3812.4,3811.7,2.62349131]
[1753029882455,0.38909114,3812.4,3811.1,2.65014943]
[1753029882456,2.62321485,3812.2,3811.1,2.65014943]
[1753029882734,1.268,3812.1,3810.6,7.74114343]
[1753029882929,1.268,3812.1,3811.5,2.62363778]
[1753029883131,1.268,3812.1,3811.3,2.62373381]
[1753029883581,3.89123706,3812.1,3810.7,5.6241648]
[1753029883883,0.38912371,3812.0,3810.9,3.0]
[1753029884046,0.8261,3812.1,3811.6,2.62356152]
[1753029884248,0.8261,3812.1,3811.8,2.62336687]
[1753029884432,0.8261,3812.1,3811.6,0.0262357]
[1753029884631,0.8261,3812.1,3811.2,3.48693845]
[1753029884873,0.8261,3812.1,3811.8,2.62337683]
[1753029885044,0.8261,3812.1,3811.2,3.4607]
[1753029885045,0.8261,3812.1,3811.9,2.62334961]
[1753029885250,0.8261,3812.1,3812.0,2.62329485]
[1753029885455,6.291,3813.5,3812.5,2.62292761]
[1753029885456,0.7541,3812.7,3812.5,2.62292761]
[1753029885653,0.7541,3812.7,3812.6,2.62288202]
[1753029886145,0.002,3813.3,3813.2,2.62246931]
[1753029886364,0.002,3813.3,3813.2,5.62246931]
[1753029886577,0.002,3813.3,3813.2,5.75286931]
[1753029886735,0.002,3813.3,3813.2,5.779094]
[1753029886941,0.002,3813.3,3813.2,6.21356931]
[1753029887366,0.06433333,3813.7,3813.6,2.62219425]
[1753029887784,0.06433333,3813.7,3813.6,2.75259425]
[1753029887945,0.06433333,3813.7,3813.6,6.23951619]
[1753029888275,1e-08,3813.7,3813.6,5.75259425]
[1753029888436,1e-08,3813.7,3813.6,10.37559425]
[1753029888643,1e-08,3813.7,3813.6,10.37359425]
[1753029889062,1e-08,3813.7,3813.6,0.1304]
[1753029889263,1e-08,3813.7,3813.3,0.1304]
[1753029889463,1e-08,3813.7,3813.5,2.622226]
[1753029889666,1e-08,3813.7,3812.8,2.62274412]
[1753029889667,0.4419,3813.6,3812.8,2.62274412]
[1753029889863,0.4419,3813.6,3813.0,0.1304]
[1753029890095,0.4419,3813.6,3812.1,3.11015329]
[1753029890246,0.1304,3813.4,3812.9,2.62267565]
[1753029890447,0.1304,3813.4,3812.8,2.75309639]
[1753029890758,0.7541,3813.2,3812.4,2.62301068]
[1753029890951,0.1304,3813.0,3812.4,2.62301962]
[1753029891187,0.4419,3812.9,3811.1,0.8119]
[1753029891343,0.7541,3811.9,3810.7,0.4607]
[1753029891544,0.1304,3811.6,3811.0,0.1304]
[1753029892180,0.13264,3811.6,3810.1,1.2726]
[1753029892388,0.1304,3811.3,3810.6,0.1312]
[1753029892692,0.7541,3810.8,3809.1,0.4617]
[1753029892917,0.1312,3810.3,3809.6,0.1312]
[1753029893074,0.1312,3810.3,3809.7,2.62487859]
[1753029893283,0.1312,3810.6,3809.9,2.75588359]
[1753029893626,0.8853,3810.8,3810.2,0.1312]
[1753029893975,0.1312,3810.6,3810.0,0.1312]
[1753029894407,0.1312,3810.6,3810.1,2.62454881]
[1753029894583,0.1312,3810.6,3810.0,2.75586155]
[1753029894905,1.196,3810.8,3809.1,0.001]
[1753029894906,0.7541,3810.8,3809.1,0.001]
[1753029895108,0.1312,3809.8,3809.1,0.1322]
[1753029895319,0.4419,3810.5,3809.2,0.02625223]
[1753029895320,0.812,3810.4,3809.2,0.02625223]
[1753029895611,0.1312,3810.3,3810.0,2.6246082]
[1753029895770,0.1312,3810.3,3809.8,2.62475096]
[1753029895973,0.4419,3810.2,3809.1,0.001]
[1753029896272,0.1312,3810.0,3809.5,5.2500328]
[1753029896473,0.812,3810.4,3809.2,3.0]
[1753029896682,0.812,3810.4,3809.9,2.62469686]
[1753029896886,0.812,3810.4,3810.0,2.62467034]
[1753029897084,0.812,3810.4,3809.3,3.02625154]
[1753029897289,0.812,3810.4,3810.0,2.62460817]
[1753029897510,0.812,3810.4,3810.0,2.62308789]
[1753029897710,0.812,3810.4,3809.4,0.47645085]
[1753029898008,0.812,3810.4,3810.3,2.62446526]
[1753029898213,0.812,3810.4,3810.2,2.62453075]
[1753029898416,0.812,3810.4,3810.2,2.62446825]
[1753029899082,0.812,3810.4,3810.3,2.62446526]
[1753029899281,0.812,3810.4,3810.2,2.62452976]
[1753029899813,0.812,3810.4,3809.4,3.4502]
[1753029900296,0.812,3810.4,3809.4,0.4502]
[1753029900499,4.21118543,3810.4,3809.1,0.001]
[1753029900699,0.812,3810.4,3809.1,0.001]
[1753029900904,0.812,3810.4,3809.9,2.62470329]
[1753029901102,0.812,3810.4,3809.3,2.62509799]
[1753029901103,3.43641625,3810.4,3809.3,2.62509799]
[1753029901277,2.62458216,3810.2,3809.3,2.62509799]
[1753029901482,2.62466454,3810.1,3809.2,2.62520672]
[1753029901789,2.62486386,3809.8,3809.1,0.001]
[1753029902004,2.6249067,3809.7,3809.1,0.001]
[1753029902189,0.7894,3809.7,3809.1,0.001]
[1753029902399,1.2205,3809.7,3809.1,0.001]
[1753029902705,1.60501925,3809.7,3809.1,0.001]
[1753029902900,2.62515509,3809.3,3809.1,0.001]
[1753029903092,3.41462314,3809.2,3809.1,0.001]
[1753029903293,3.84572314,3809.2,3809.1,0.001]
[1753029903493,1.2205,3809.2,3809.1,0.001]
[1753029903803,3.41469328,3809.1,3808.6,0.001]
[1753029904118,0.38457933,3809.0,3808.6,0.001]
[1753029904431,2.62542991,3808.9,3808.6,0.001]
[1753029904622,3.05652991,3808.9,3808.6,0.001]
[1753029904919,0.7894,3808.9,3808.6,0.001]
[1753029905082,1.2205,3808.9,3808.6,0.001]
[1753029905278,4.42627991,3808.9,3808.6,0.001]
[1753029906295,9.00327991,3808.9,3808.6,0.001]
[1753029907606,9.53409291,3808.9,3808.6,0.001]
[1753029908187,3.17556777,3808.7,3808.6,0.001]
[1753029908416,3.17556777,3808.7,3808.6,1e-08]
[1753029908616,2.6257746,3808.4,3808.3,0.001]
[1753029908819,3.1757746,3808.4,3808.3,0.001]
[1753029909017,3.6068746,3808.4,3808.3,0.001]
[1753029909190,3.85014986,3808.4,3808.3,1e-08]
[1753029909391,3.17598146,3808.1,3808.0,0.52621]
[1753029909621,9.20857915,3808.1,3808.0,0.52621]
[1753029909790,2.62632629,3807.6,3807.2,0.001]
[1753029909994,7.19732629,3807.6,3807.2,0.001]
[1753029910211,8.17842629,3807.6,3807.2,0.001]
[1753029910431,8.17842629,3807.6,3807.5,1e-08]
[1753029910631,0.55,3807.1,3806.1,0.001]
[1753029910849,3.43649231,3806.2,3806.1,0.001]
[1753029911208,8.43859231,3806.2,3806.1,0.001]
[1753029911448,1.2403,3806.2,3806.1,0.001]
[1753029911620,5.3792,3806.2,3806.1,0.001]
[1753029911813,0.8092,3806.2,3806.1,2.62836134]
[1753029912012,0.4311,3806.7,3806.1,2.62836134]
[1753029912013,0.8092,3806.7,3806.6,2.62701623]
[1753029912238,0.8092,3807.2,3806.1,0.001]
[1753029912718,4.9991,3807.1,3806.1,0.001]
[1753029912918,3.20763592,3807.0,3806.2,2.62726949]
[1753029913219,7.19681238,3806.9,3806.1,0.001]
[1753029913418,2.62709128,3806.5,3806.1,0.001]
[1753029913634,0.58083,3807.0,3806.1,0.001]
[1753029913850,4.569,3806.9,3805.6,0.4022]
[1753029914016,0.4311,3807.7,3805.8,3.0]
[1753029914209,0.4311,3807.7,3805.7,0.02627637]
[1753029914210,7.19454203,3807.3,3806.5,2.62702265]
[1753029914519,2.62674021,3807.0,3805.4,0.001]
[1753029914724,2.62697564,3806.7,3805.9,2.62748682]
[1753029914938,4.568,3806.8,3805.7,2.62757273]
[1753029915150,0.4311,3806.6,3806.1,2.62735582]
[1753029915347,0.4311,3806.6,3805.4,3.02727844]
[1753029915550,0.4311,3806.6,3805.8,2.62755583]
[1753029915740,3.94031503,3806.6,3805.9,2.6274939]
[1753029916043,3.94031503,3806.6,3805.4,0.001]
[1753029916044,2.62723231,3806.3,3805.5,2.62773528]
[1753029916205,2.62729429,3806.2,3805.4,2.62883074]
[1753029916409,2.62749602,3806.0,3805.4,0.001]
[1753029916609,2.62722328,3806.3,3805.4,0.001]
[1753029916848,2.62736134,3806.1,3805.4,0.001]
[1753029917007,5.3723,3806.1,3805.4,0.001]
[1753029917211,2.62777558,3805.5,3805.4,0.001]
[1753029917410,0.4311,3806.0,3805.4,0.001]
[1753029917411,3.05858796,3806.0,3805.4,0.001]
[1753029917650,0.8113,3806.1,3805.4,0.001]
[1753029917863,2.62744092,3806.0,3805.4,0.001]
[1753029918067,2.62744092,3806.0,3805.2,2.83202598]
[1753029918273,2.62744092,3806.0,3805.3,2.62790615]
[1753029918456,0.8113,3806.1,3805.2,0.20404423]
[1753029918656,0.8113,3806.1,3805.5,2.62772906]
[1753029919370,0.8113,3806.1,3805.2,2.83200761]
[1753029919572,3.43867209,3806.1,3805.2,0.20404423]
[1753029919737,0.1312,3805.5,3805.3,2.62791369]
[1753029920082,0.1312,3805.5,3805.4,2.62784464]
[1753029920239,0.1312,3805.5,3805.4,2.61996464]
[1753029921263,0.1312,3805.5,3805.3,2.62789986]
[1753029921569,0.1312,3805.5,3805.2,2.83201421]
[1753029921758,0.1312,3805.5,3805.2,0.20404423]
[1753029921961,0.1312,3805.5,3805.3,2.62791369]
[1753029922173,0.1312,3805.5,3805.2,0.20404423]
[1753029922378,0.1312,3805.5,3805.3,2.62789564]
[1753029922676,0.1312,3805.5,3805.4,2.62784464]
[1753029923104,0.1312,3806.0,3805.5,2.62777558]
[1753029923263,0.1312,3806.0,3805.9,2.6274994]
[1753029923596,0.1312,3806.0,3805.3,0.1312]
[1753029923967,0.1312,3806.0,3805.8,2.62751925]
[1753029924309,0.1312,3806.0,3805.3,0.1312]
[1753029924310,0.4311,3807.2,3805.9,3.4502]
[1753029924602,0.1312,3806.7,3806.6,2.62701623]
[1753029924763,0.1312,3807.0,3806.7,2.62689731]
[1753029925175,0.1312,3807.0,3806.9,2.62680921]
[1753029925378,0.1312,3807.0,3806.8,3.07707462]
[1753029925567,0.1312,3807.0,3806.9,2.62680921]
[1753029926986,0.8171,3807.7,3806.9,0.4502]
[1753029927216,0.8171,3807.7,3807.6,2.62632629]
[1753029927383,0.8171,3808.1,3807.7,2.62625212]
[1753029927583,0.1312,3807.8,3807.1,2.62667121]
[1753029927824,0.1312,3807.8,3807.7,2.62622428]
[1753029928030,0.1312,3808.1,3808.0,2.62605042]
[1753029928175,0.1312,3808.1,3807.8,2.62612591]
[1753029928509,0.1312,3808.1,3807.9,2.62611084]
[1753029928906,0.1312,3808.1,3807.5,0.1312]
[1753029929075,0.1312,3808.1,3807.7,2.62620936]
[1753029929485,0.4481,3808.1,3807.1,4.541]
[1753029929689,0.1312,3807.6,3807.3,2.62647657]
[1753029929885,0.1312,3807.6,3807.0,0.1312]
[1753029929886,0.1312,3807.6,3807.4,0.08201939]
[1753029930207,0.8115,3807.8,3806.8,3.0]
[1753029930370,0.1312,3807.5,3807.3,2.62650273]
[1753029930579,0.1312,3807.5,3807.4,2.62646425]
[1753029930911,0.1332,3807.8,3807.4,0.08202393]
[1753029931076,0.002,3807.8,3807.5,0.08202393]
[1753029931275,0.002,3807.8,3806.8,7.54]
[1753029931276,0.26481037,3807.8,3807.6,0.08202393]
[1753029931476,0.002,3807.8,3807.7,0.08202393]
[1753029931878,0.002,3807.8,3807.7,2.70828125]
[1753029932195,0.1332,3807.8,3807.7,0.08202393]
[1753029933316,0.1332,3807.8,3807.7,2.70828125]
[1753029934211,0.8095,3809.7,3807.8,2.62618835]
[1753029934406,0.8095,3809.7,3807.7,1.29442393]
[1753029934407,0.1312,3809.6,3809.5,2.6250164]
[1753029934920,0.1312,3809.6,3809.1,0.4341]
[1753029934921,0.1312,3809.6,3809.4,2.62507892]
[1753029935094,0.1312,3809.6,3809.5,2.6250164]
[1753029935498,0.1312,3809.6,3809.5,2.70701531]
[1753029936131,3.6714675,3809.6,3809.5,0.08199891]
[1753029936507,4.4353675,3809.6,3809.5,0.08199891]
[1753029937032,6.34842,3809.6,3809.5,0.08199891]
[1753029937204,1.81042,3809.6,3809.5,0.08199891]
[1753029937409,8.9733675,3809.6,3809.5,0.08199891]
[1753029938419,9.5233675,3809.6,3809.5,0.08199891]
[1753029938657,0.7639,3808.8,3807.4,2.0]
[1753029938815,0.1312,3808.0,3807.8,2.62617148]
[1753029939221,4.538,3808.4,3807.4,2.0]
[1753029939454,4.6692,3808.4,3807.7,0.1312]
[1753029939622,4.9861,3808.4,3807.4,2.0]
[1753029939978,0.1312,3807.8,3807.4,2.0]
[1753029940133,4.538,3807.7,3807.4,2.0]
[1753029940540,0.1312,3807.8,3807.5,2.62639527]
[1753029940747,0.1312,3807.8,3807.5,3.06048729]
[1753029940928,4.537,3807.9,3807.6,0.1312]
[1753029941125,4.537,3807.9,3807.6,2.75747829]
[1753029941353,4.537,3807.9,3807.7,2.62625732]
[1753029941539,4.537,3807.9,3807.6,0.1312]
[1753029941933,4.537,3807.9,3807.4,2.0]
[1753029942166,0.4481,3808.6,3807.4,2.0]
[1753029942167,0.1312,3808.0,3807.9,2.62611938]
[1753029942531,0.4481,3809.1,3807.9,0.4341]
[1753029942733,4.537,3808.3,3807.9,0.1312]
[1753029942963,4.537,3808.3,3808.0,2.62603158]
[1753029943176,4.537,3808.3,3808.0,2.62605042]
[1753029943374,4.537,3808.3,3807.9,2.75730843]
[1753029943545,4.537,3808.3,3808.1,2.62592025]
[1753029943745,4.537,3808.3,3807.9,2.75729861]
[1753029943963,4.537,3808.3,3807.9,0.1312]
[1753029944344,4.537,3808.3,3807.9,2.75731663]
[1753029944544,4.537,3808.3,3808.1,2.62595307]
[1753029944762,4.537,3808.3,3807.9,0.1312]
[1753029944945,0.1312,3808.6,3807.9,0.1312]
[1753029945165,4.537,3808.5,3808.1,2.62596322]
[1753029945471,0.1312,3808.6,3808.0,2.62604129]
[1753029945671,4.537,3808.5,3808.1,2.62595147]
[1753029946043,0.1312,3808.6,3807.9,0.1312]
[1753029946376,2.62587182,3808.3,3807.4,2.0]